Cogmind - Beta 15 @@@ ROGUE MODE // 2025.05.09 @ 21:18:37 Player: Minty Result: Destroyed by G-73 Enforcer with Heavy Laser Performance ------------- Evolutions (7) 3500 Regions Visited (15) 3000 Robots Destroyed (244) 1220 Value Destroyed (10370) 10370 Prototype IDs (30) 600 Alien Tech Used (3) 600 Bonus (2648) 2648 TOTAL SCORE: 21938 Bonus ------- High Alert Combat Kills 1406 Follower Combat Kills 942 Met Zhirov 300 Cogmind --------- Core Integrity 0/1300 Matter 265/300 Energy 85/100 System Corruption 37% Temperature Cool (11) Movement Core (50) Location -3/Research Parts ------- > --- POWER (2) -------- (None) > --- PROPULSION (5) --- (None) > --- UTILITY (11) ----- Advanced Launcher Guidance Computer Advanced Target Analyzer Advanced Target Analyzer > --- WEAPON (3) ------- (None) > --- INVENTORY (5) ---- Compact Particle Reactor Medium Storage Unit Experimental Energy Well (341) Particle Accelerator Particle Accelerator Peak State ------------ > --- POWER ------------ Reinforced Fission Core Light Quantum Reactor > --- PROPULSION ------- Medium Treads Medium Treads Heavy Treads Biometal Medium Treads > --- UTILITY ---------- Large Storage Unit Particle Accelerator Improved Phase Shifter Centrium Light Armor Plating Centrium Light Armor Plating Centrium Light Armor Plating Centrium Light Armor Plating Centrium Light Armor Plating Graphene Brace Improved Point Defense System Advanced Hacking Suite > --- WEAPON ----------- Gamma Rifle Gamma Rifle HERF Cannon > --- INVENTORY -------- Light Antimatter Reactor Wheel Medium Storage Unit Advanced Energy Well Armor Integrity Analyzer Improved Particle Charger Particle Accelerator Particle Accelerator Advanced Transmission Jammer Transdimensional Reconstructor Heavy Beamcaster Matter Neutralizer KE Penetrator Gravity Flail [Rating: 156] Favorites ----------- Power Neutrino Core Engine Light Angular Momentum Engine Power Core Neutrino Core Reactor Light Quantum Reactor Propulsion Wheel Treads Light Treads Leg Heavy Armored Exoskeleton Wheel Wheel Hover Unit Improved Antigrav System Flight Unit Field Propulsion Drive Utility Medium Storage Unit Device Graphene Brace Storage Medium Storage Unit Processor Armor Integrity Analyzer Hackware Advanced Hacking Suite Protection Centrium Light Armor Plating Weapon Gatling Laser Energy Gun Gatling Laser Energy Cannon Heavy Ion Cannon Ballistic Gun High-powered Shotgun Ballistic Cannon Heavy Mass Driver Launcher Proton Missile Launcher Impact Weapon Hammer Slashing Weapon Phasing Sabre Build | -11 -10 -9 -8 -7 -6 -5 -5 -5 -5 -5 -5 -4 -4 -4 -3 ------- Run | Yrd Mat Mat Mat Fac Fac Fac Was Fac Upp Upp Zhi Pro Fac Ext Res Slots Evolved 14 | . . 2 2 2 2 2 . . . . . . 2 . 2 Power 1 | . . . . . . 1 . . . . . . . . . Propulsion 3 | . . . 1 . . 1 . . . . . . 1 . . Utility 9 | . . 2 . 2 2 . . . . . . . 1 . 2 Weapon 1 | . . . 1 . . . . . . . . . . . . Parts Attached 254 | . 7 15 33 33 21 3 4 20 4 4 3 1 8 56 42 Power 28 | . 2 1 3 2 3 . . 2 . 1 1 . 1 8 4 Engine 11 | . 2 1 2 2 2 . . . . . . . 1 1 . Core 8 | . . . 1 . 1 . . 2 . . . . . 4 . Reactor 9 | . . . . . . . . . . 1 1 . . 3 4 Propulsion 60 | . 2 4 9 6 4 . 3 . . . . . 2 21 9 Treads 14 | . 2 1 2 1 1 . . . . . . . . 3 4 Leg 21 | . . . 1 3 1 . 2 . . . . . . 14 . Wheel 15 | . . 3 5 2 2 . . . . . . . . 3 . Hover 6 | . . . 1 . . . 1 . . . . . 1 . 3 Flight 4 | . . . . . . . . . . . . . 1 1 2 Utility 110 | . 2 6 9 18 10 1 . 15 3 2 2 1 5 13 23 Device 50 | . . 4 4 8 9 1 . 9 1 1 1 . 1 3 8 Storage 7 | . 1 . . 1 . . . . 1 . 1 . . 1 2 Processor 24 | . . 1 1 3 1 . . 3 . . . . 3 7 5 Hackware 4 | . . . . 1 . . . 1 . . . 1 1 . . Protection 25 | . 1 1 4 5 . . . 2 1 1 . . . 2 8 Artifact . | . . . . . . . . . . . . . . . . Weapon 56 | . 1 4 12 7 4 2 1 3 1 1 . . . 14 6 Energy Gun 19 | . . 3 5 4 2 . . . . . . . . 3 2 Energy Cannon 11 | . . 1 1 . 1 2 . 2 . . . . . 2 2 Ballistic Gun 8 | . . . 5 1 . . . . 1 . . . . 1 . Ballistic Cannon 9 | . . . 1 1 . . . 1 . 1 . . . 4 1 Launcher 3 | . . . . 1 1 . 1 . . . . . . . . Special Weapon . | . . . . . . . . . . . . . . . . Impact Weapon 2 | . 1 . . . . . . . . . . . . . 1 Slashing Weapon 4 | . . . . . . . . . . . . . . 4 . Piercing Weapon . | . . . . . . . . . . . . . . . . Special Melee Weapon . | . . . . . . . . . . . . . . . . Unidentified Prototypes 20 | . . . 2 4 2 1 . 1 . 1 4 . . . 5 Corrupted Parts 10 | . . 1 . . . . . 2 . . . . . 7 . System Corruption 56 | . . 3 . . . . . 4 . . . . . 49 . Parts Lost 125 | . 4 7 12 8 11 . 8 5 4 1 . 5 2 26 32 Power 15 | . 1 1 2 . . . . . . . . 1 2 5 3 Propulsion 45 | . 1 3 6 5 3 . 3 . . . . 1 . 12 11 Utility 40 | . 1 3 1 3 4 . 3 5 1 1 . 2 . 5 11 Weapon 25 | . 1 . 3 . 4 . 2 . 3 . . 1 . 4 7 Highest Loss Streak 11 | . 3 5 6 3 6 . 7 4 3 1 . 2 2 11 9 To Critical Strikes . | . . . . . . . . . . . . . . . . Average Backups 8 | . 8 8 9 9 9 8 6 4 4 5 5 5 5 6 12 Power 1 | . . . . 1 2 1 1 . 1 1 1 1 1 . . Propulsion . | . 4 2 . . . . . . . . . . . . . Utility 2 | . 1 1 1 2 1 2 1 1 1 2 3 3 3 3 6 Weapon 3 | . 1 4 6 5 5 4 3 2 1 . . . . 1 4 Tool/Special . | . . . . . . . . . . . . . . . . Unused Backups 27 | . 2 1 6 1 1 . . 5 . 2 . . . . 9 Power 3 | . 2 . . . . . . . . 1 . . . . . Propulsion 3 | . . . 1 . . . . 1 . 1 . . . . . Utility 13 | . . . 2 . 1 . . 3 . . . . . . 7 Weapon 6 | . . 1 1 1 . . . 1 . . . . . . 2 Tool/Special 2 | . . . 2 . . . . . . . . . . . . Average Slot Usage (%) 76 | . 91 79 94 92 90 78 30 64 57 60 52 45 46 82 74 Engine 3 | . 13 10 7 7 1 5 1 4 . . . . 7 . . Core 3 | . . . . . 4 5 1 5 11 11 11 4 . 3 2 Reactor 1 | . . . . . . . . . . . . . . 3 4 Treads 3 | . 9 11 1 1 8 . . . . . . . . 1 11 Leg 5 | . 18 . 5 3 7 5 2 5 5 5 5 4 . 15 . Wheel 4 | . . 8 16 11 . 5 1 . . . . . . 1 . Device 15 | . . 13 8 18 28 29 7 16 20 19 17 16 10 10 12 Storage 5 | . 14 11 9 7 6 5 2 . 2 4 5 4 . 2 5 Processor 4 | . . 9 2 1 6 11 6 7 2 . . . 11 15 3 Hackware 2 | . . . . 1 . . . 1 . . . . 5 10 4 Protection 8 | . 12 . 14 14 5 . . 2 4 8 11 8 . 1 14 Energy Gun 6 | . . 9 5 22 18 . . . . . . . . 3 3 Energy Cannon 1 | . . 2 1 . . 7 2 14 1 . . . . . 3 Ballistic Gun 2 | . 10 . 18 . . . . . . . . . . . . Ballistic Cannon 1 | . . . 1 . . . . . 3 6 . 3 . 4 3 Peak Build Rating 156 | . 8 12 33 45 58 60 60 114 114 114 113 113 75 123 156 Average Rating 68 | . 7 9 24 38 51 54 22 90 107 109 97 94 62 88 117 On Entrance 56 | 6 6 5 12 33 45 44 60 34 114 107 106 113 44 71 99 Naked Turns 27 | . . . . . . . 27 . . . . . . . . Heaviest Build 130 | 11 22 21 40 46 48 68 68 77 69 66 57 43 7 92 130 Greatest Support 175 | 20 40 40 36 36 40 10 10 90 90 90 90 90 7 140 175 Greatest Overweight (x) 12 | . 1 1 3 12 4 6 6 . . . . 1 1 4 6 Average Overweight (x) . | . . . 1 1 1 4 . . . . . . . . . Largest Inventory Capacity 15 | . 10 10 10 10 10 10 10 5 5 5 5 5 5 10 15 Average Capacity 8 | . 9 10 10 10 10 10 6 5 5 5 5 5 5 7 13 Most Carried 15 | . 10 10 10 10 10 10 10 5 5 5 5 5 5 10 15 Average Carried 8 | . 8 8 9 9 9 8 6 4 4 4 4 4 4 6 12 Final Capacity 10 | 8 10 10 10 10 10 10 5 5 5 5 5 5 5 10 5 Final Carried 10 | 6 7 10 10 10 10 7 5 5 5 5 5 5 5 9 5 Class Distribution -------------------- 35% | Scavenger-Tank 14% | Scavenger-Skirmisher 11% | Scavenger-Mutant 10% | Mutant 10% | Scavenger-Gunner 6% | Tank 4% | Gunner 3% | Scout Dominant Class ---------------- Mutant | -10/Materials Scavenger-Mutant | -9/Materials Scavenger-Tank | -8/Materials Scavenger-Tank | -7/Factory Scavenger-Tank | -6/Factory Gunner | -5/Factory Mutant | -5/Waste Scavenger-Tank | -5/Factory Scavenger-Skirmisher | -5/Upper Caves Scavenger-Skirmisher | -5/Upper Caves Scavenger-Mutant | -5/Zhirov Scavenger-Skirmisher | -4/Proximity Caves Scout | -4/Factory Scavenger-Gunner | -4/Extension Scavenger-Tank | -3/Research Resources | -11 -10 -9 -8 -7 -6 -5 -5 -5 -5 -5 -5 -4 -4 -4 -3 ----------- Run | Yrd Mat Mat Mat Fac Fac Fac Was Fac Upp Upp Zhi Pro Fac Ext Res Matter Collected 6612 | 200 95 169 777 614 257 112 . 425 414 230 . 210 . 1685 1424 Remotely . | . . . . . . . . . . . . . . . . Salvage Created 12443 | . 658 480 1368 2168 1051 127 . 599 416 478 . 71 12 1811 3204 Parts 444 | . 17 22 55 77 42 1 . 30 20 16 . 5 . 40 119 Haulers Intercepted 14 | . 1 1 3 2 2 . . . . . . . . . 5 Recyclers Shooed 12 | . . . . . 3 . . 2 . . . . . . 7 Parts Field Recycled . | . . . . . . . . . . . . . . . . Retrieved Matter . | . . . . . . . . . . . . . . . . Parts Self-Destructed 14 | . . . . . . . . . 5 4 . 5 . . . Prevented 26 | . . . . . . . . . 14 12 . . . . . Kills | -11 -10 -9 -8 -7 -6 -5 -5 -5 -5 -5 -5 -4 -4 -4 -3 ------- Run | Yrd Mat Mat Mat Fac Fac Fac Was Fac Upp Upp Zhi Pro Fac Ext Res Combat Hostiles Destroyed 177 | . 13 9 23 38 19 . . 3 6 7 . 2 . 22 35 Melee 13 | . 6 3 . . . . . . . . . . . 3 1 Guns 66 | . . 3 18 27 13 . . . . . . . . 3 2 Cannons 49 | . . 2 3 . . . . 3 2 3 . 2 . 15 19 AOE 14 | . . 1 . 8 2 . . . 2 1 . . . . . Classes Destroyed 18 | . 5 3 3 2 1 . . 1 2 . . . . 1 . Worker 15 | . . . 4 3 1 . . 3 . . . . . . 4 Builder 12 | . . . 1 2 1 . . . . . . . . 3 5 Tunneler 4 | . . 1 . 1 . . . . . . . . . . 2 Hauler 14 | . 1 1 3 2 2 . . . . . . . . . 5 Recycler 15 | . 1 . 1 4 . 1 . 2 . . . . . 3 3 Mechanic 2 | . . 1 1 . . . . . . . . . . . . Operator 3 | . 1 . . . . . . . . . . . 1 . 1 Watcher 2 | . 1 . 1 . . . . . . . . . . . . Swarmer 7 | . . . . . 7 . . . . . . . . . . Saboteur 1 | . . . . . . . . . . . . . . 1 . Grunt 105 | . 13 5 18 27 8 . . . 2 6 . 1 . 10 15 Brawler 9 | . . . . 4 . . . . . . . . . 2 3 Duelist 3 | . . . 1 1 . . . . . . . . . . 1 Sentry 22 | . . 4 4 2 2 . . 2 . 1 . . . 5 2 Hunter 9 | . . . . . . . . . 3 . . . . 2 4 Programmer 16 | . . . . 4 2 . . . . . . 1 . . 9 Heavy 2 | . . . . . . . . 1 . . . . . . 1 Behemoth 2 | . . . . . . . . . 1 . . . . 1 . Thug 1 | . . . . . . . . . . . . . . 1 . Best Kill Streak 10 | . 5 3 8 10 5 1 . 3 2 4 . 1 1 4 8 Combat Bots Only 6 | . 5 3 6 5 4 . . 1 2 4 . 1 . 4 6 Max Kills in Single Turn 3 | . 1 1 2 3 2 1 . 1 1 2 . 1 1 2 2 Gunslinging 1 | . . . . 1 1 . . . . . . . . . . Exploded 2 | . . 1 . 2 2 . . . 1 1 . . . . . Melee 1 | . 1 1 . . . . . . . . . . . 1 1 Uniques/NPCs Destroyed . | . . . . . . . . . . . . . . . . Combat | -11 -10 -9 -8 -7 -6 -5 -5 -5 -5 -5 -5 -4 -4 -4 -3 -------- Run | Yrd Mat Mat Mat Fac Fac Fac Was Fac Upp Upp Zhi Pro Fac Ext Res Hostile Shots Fired 1858 | . 87 94 141 133 236 . 6 51 123 29 . 119 36 254 549 Missed 598 | . 25 25 43 38 78 . . 12 44 15 . 45 20 75 178 Hits 1260 | . 62 69 98 95 158 . 6 39 79 14 . 74 16 179 371 Melee 33 | . . . 1 8 . . 6 . . . . 3 . 4 11 Projectile 1227 | . 62 69 97 87 158 . . 39 79 14 . 71 16 175 360 AOE 1 | . . . . 1 . . . . . . . . . . . Critical Strikes 77 | . . 3 7 7 2 . 2 3 1 2 . 8 1 9 32 Actively Blocked 49 | . . . . . . . . . 1 2 . 8 1 9 28 Part Disruptions 2 | . . . . . . . . . . . . 1 . . 1 Damage Taken 23455 | . 687 977 1584 1611 1474 . 493 1252 1233 205 . 1365 318 3864 8392 Core 4289 | . 92 375 152 124 185 . 266 178 102 30 . 402 154 959 1270 Absorbed by Shields 716 | . . . . . 498 . . 96 . 57 . . . 65 . Reduced by Siege Mode 58 | . . . . . . . . . . . . . . . 58 Redirected to Shielding 141 | . . . . 30 76 . . . . . . 35 . . . Ignored by Resistances 395 | . . . . . . . . . . 33 . 163 . . 199 Regen/Repaired (Parts) 158 | . 67 . . 34 57 . . . . . . . . . . Core Remaining (%) 50 | 100 63 6 72 82 78 . . . . . . 2 . 3 . Volleys Fired 552 | . 7 32 73 75 68 3 5 36 28 14 . 16 . 84 111 Largest 3 | . 2 2 3 3 3 3 2 3 2 2 . 1 . 3 3 Hottest 295 | . 40 112 240 240 208 199 72 227 104 109 . 65 . 250 295 Shots Fired 1217 | . 13 53 199 203 164 9 9 77 28 16 . 17 . 154 275 Gun 675 | . 13 43 155 194 156 . . . 5 . . . . 54 55 Cannon 504 | . . 10 44 . 5 9 . 77 11 11 . 17 . 100 220 Launcher 38 | . . . . 9 3 . 9 . 12 5 . . . . . Special . | . . . . . . . . . . . . . . . . Kinetic 377 | . 13 . 110 . . . . 7 11 11 . 17 . 97 111 Thermal 667 | . . 43 89 194 156 6 . 40 5 . . . . 50 84 Explosive 10 | . . . . . 1 . 9 . . . . . . . . Electromagnetic 163 | . . 10 . 9 7 3 . 30 12 5 . . . 7 80 Robot Hit Streak 28 | . 4 17 14 16 23 10 19 6 3 3 . 8 . 24 28 Robot Miss Streak 12 | . 1 2 12 4 2 . . 3 3 10 . 1 . 4 4 Penetration Max 3 | . . . . . . . . . . 1 . . . 3 1 Secondary Targets 13 | . . . 2 5 4 . . . . . . . . 1 1 Max Gunslinging Chain 2 | . . . 1 1 2 . . . . . . . . 1 1 Shots Hit Robots 904 | . 56 46 127 147 120 8 9 43 13 4 . 12 . 124 195 Core Hits 433 | . 9 12 99 116 39 1 2 15 10 9 . 3 1 55 62 Critical Kills 21 | . 1 1 1 . . . . . . . . . . 15 3 Critical Parts Destroyed 42 | . 3 2 3 . . . . . 2 . . . . 25 7 Critical Strikes 103 | . 4 4 7 1 8 . . 2 3 . . 2 . 51 21 Burn 16 | . . 1 2 1 8 . . . . . . . . 3 1 Meltdown 3 | . . . . . . . . . . . . . . . 3 Destroy 45 | . . . 1 . . . . . 2 . . . . 42 . Blast 16 | . . . 1 . . . . 2 1 . . 2 . . 10 Smash 17 | . 4 3 3 . . . . . . . . . . . 7 Sever 6 | . . . . . . . . . . . . . . 6 . Melee Attacks 150 | . 65 9 14 . . . . . . . . . . 35 27 Impact 115 | . 65 9 14 . . . . . . . . . . . 27 Slashing 35 | . . . . . . . . . . . . . . 35 . Piercing . | . . . . . . . . . . . . . . . . Sneak Attacks 13 | . 3 1 2 . . . . . . . . . . 2 5 Combat Hostiles . | . . . . . . . . . . . . . . . . Follow-up Attacks 3 | . . . . . . . . . . . . . . 3 . Damage Inflicted 30722 | . 1396 1147 2413 5034 2647 272 772 1422 734 727 . 808 116 3999 9235 Guns 10212 | . 105 466 1646 3434 2271 . . . 15 . . . . 1048 1227 Cannons 11875 | . . 149 459 . 94 227 . 1422 258 220 . 801 . 1895 6350 Explosions 4052 | . . 296 . 1600 280 45 772 . 440 507 . . 112 . . Melee 4267 | . 1281 235 299 . . . . . . . . . . 1048 1404 Ramming 316 | . 10 1 9 . 2 . . . 21 . . 7 4 8 254 Kinetic 7536 | . 105 . 1035 . . . . 392 246 220 . 801 . 1811 2926 Thermal 12709 | . . 762 1070 4324 2271 182 . 591 27 . . . 112 977 2393 Explosive 920 | . . . . . 148 . 772 . . . . . . . . Electromagnetic 4974 | . . 149 . 710 226 90 . 439 440 507 . . . 155 2258 Impact 3219 | . 1281 235 299 . . . . . . . . . . . 1404 Slashing 1048 | . . . . . . . . . . . . . . 1048 . Piercing . | . . . . . . . . . . . . . . . . Highest Corruption 51 | . . 3 . 12 1 . 14 21 21 21 21 21 2 51 37 Average Corruption 12 | . . 3 . 4 1 . 8 15 21 21 21 21 1 4 18 Corruption Purged . | . . . . . . . . . . . . . . . . Corruption Blocked . | . . . . . . . . . . . . . . . . Effects 251 | . . 3 . 27 2 . 3 38 31 31 13 30 . 16 57 Message Errors 40 | . . 1 . 6 . . 1 11 2 1 2 3 . 3 10 Matter Fused 69 | . . 1 . 8 1 . 1 7 8 8 3 9 . 6 17 Heat Flow Errors 30 | . . . . 2 . . . 7 3 9 4 1 . . 4 Energy Discharges 29 | . . . . 2 1 . 1 3 8 2 2 4 . 1 5 Parts Rejected 4 | . . . . . . . . . 1 . . 1 . . 2 Parts Fused 2 | . . . . 1 . . . . 1 . . . . . . Data Loss (minor) 30 | . . . . 3 . . . 4 3 8 2 3 . 1 6 Data Loss (major) 14 | . . . . 1 . . . 2 2 2 . 1 . 1 5 Misfires 7 | . . . . 2 . . . 1 . 1 . 3 . . . Alerts 5 | . . . . . . . . 1 1 . . 2 . 1 . Misdirections 6 | . . . . . . . . 1 1 . . 1 . . 3 Weapon Failures 15 | . . 1 . 2 . . . 1 1 . . 2 . 3 5 Overload Shots . | . . . . . . . . . . . . . . . . Overflow Damage 2005 | . 208 111 85 157 26 25 20 128 3 44 . 106 . 134 958 Projectiles 486 | . . . . . . 25 . 128 . 44 . 106 . 7 176 Explosions 228 | . . 22 . 157 26 . 20 . 3 . . . . . . Melee 1291 | . 208 89 85 . . . . . . . . . . 127 782 Knockbacks 60 | . 10 . 3 . . . . 2 . . . 4 . 13 28 Impact 17 | . 9 . 1 . . . . . . . . . . . 7 Kinetic 40 | . . . 2 . . . . 2 . . . 4 . 13 19 Secondary 3 | . 1 . . . . . . . . . . . . . 2 Self-Inflicted Damage 399 | . . 53 3 . 56 . 238 . 43 . . . 2 4 . Shots 12 | . . 1 . . 1 . 5 . 5 . . . . . . Rammed 22 | . . 3 2 . 1 . . . . . . . 1 1 14 Targets Rammed 30 | . 1 3 2 . 1 . . . 2 . . 1 1 1 18 Kicked 4 | . 1 . . . . . . . 2 . . 1 . . . Crushed 4 | . . . . . . . . . . . . . . . 4 Highest Temperature 415 | . 12 237 322 268 415 300 . 323 143 242 168 205 . 117 327 Average Temperature 89 | . 6 58 101 60 116 179 . 124 69 97 67 205 . 40 87 Received Heat Transfer 4941 | . 378 408 873 678 411 . . 12 168 60 . 423 . 576 954 Effects 11 | . . . 7 . 1 . . 1 . . . . . . 2 Shutdowns 1 | . . . 1 . . . . . . . . . . . . Energy Bleed 4 | . . . 3 . . . . 1 . . . . . . . Interference 4 | . . . 2 . . . . . . . . . . . 2 Matter Decay 1 | . . . . . 1 . . . . . . . . . . Short Circuit 1 | . . . 1 . . . . . . . . . . . . Siege Activations 4 | . . . . . . . . . . . . . . . 4 Total Turns 81 | . . . . . . . . . . . . . . . 81 Longest Duration 39 | . . . . . . . . . . . . . . . 39 Martial Activations . | . . . . . . . . . . . . . . . . Shielding Activations . | . . . . . . . . . . . . . . . . Robots Disrupted 1 | . . . . . . . . 1 . . . . . . . Combat Hostiles 1 | . . . . . . . . 1 . . . . . . . Robots Corrupted 30 | . 9 1 4 . . . . . 2 3 . . . . 11 Combat Hostiles 24 | . 7 . 2 . . . . . 2 3 . . . . 10 Parts Fried 66 | . 7 2 4 . . 1 . 6 5 . . . . . 41 Impact Corruptions 40 | . 15 4 6 . . . . . . . . . . . 15 Robots Melted 12 | . . . . 3 5 . . . . . . . . 1 3 Combat Hostiles 11 | . . . . 3 4 . . . . . . . . 1 3 Parts Melted 51 | . . 4 . 16 20 . . . . . . . . 3 8 Heat Transferred 21022 | . . 1458 1858 7635 4847 235 . 814 37 . . . 50 1776 2312 Parts Sabotaged . | . . . . . . . . . . . . . . . . Parts Stolen . | . . . . . . . . . . . . . . . . Parts Stripped . | . . . . . . . . . . . . . . . . Power Chain Reactions 1 | . . . . . . 1 . . . . . . . . . Alert | -11 -10 -9 -8 -7 -6 -5 -5 -5 -5 -5 -5 -4 -4 -4 -3 ------- Run | Yrd Mat Mat Mat Fac Fac Fac Was Fac Upp Upp Zhi Pro Fac Ext Res Maximum Alert Level 3 | . . . 1 3 1 . . . . . . . . 3 3 Low Security (%) 43 | . 100 100 82 29 . 100 100 100 . . . . 100 13 . Level 1 24 | . . . 17 19 100 . . . . . . . . 13 28 Level 2 22 | . . . . 49 . . . . . . . . . 56 34 Level 3 9 | . . . . 1 . . . . . . . . . 17 37 Level 4 . | . . . . . . . . . . . . . . . . Level 5 . | . . . . . . . . . . . . . . . . High Security . | . . . . . . . . . . . . . . . . Max Security . | . . . . . . . . . . . . . . . . Peak Influence 997 | . 137 125 244 749 396 142 42 32 . . . . 171 770 997 Initial 365 | . . 53 36 72 365 142 38 . . . . . 7 65 346 Average 308 | . 52 69 131 356 329 123 10 5 . . . . 18 506 633 Influence Increases 7559 | . 398 320 755 1394 501 17 38 180 235 150 . 155 248 1706 1462 Destroy 0b10 Robot/C 3960 | . 260 180 460 780 380 . . 60 120 140 . 40 . 840 700 Destroy 0b10 Robot/NC 345 | . 20 15 55 60 20 5 . 25 . . . . 5 40 100 Destroy Leader 772 | . 44 52 98 154 82 . . 30 40 10 . 10 . 92 160 Allied During Kill 330 | . . . . 3 . . . . . . . . . 327 . Successful Hack 242 | . 42 6 . 40 12 . . . . . . . 54 22 66 Disable Machine 345 | . 15 45 30 180 . . . 15 . . . . 30 30 . Anti-Garrison Action 200 | . . . . . . . . . . . . . . . 200 Destroy Structure 385 | . 2 22 7 57 7 12 38 20 . . . . 44 90 86 Lose Combat Pursuer 780 | . 15 . 105 120 . . . 30 75 . . 105 15 165 150 Active Sensor Use 200 | . . . . . . . . . . . . . 100 100 . Influence Decreases 6651 | . 269 362 681 809 955 200 147 161 254 150 . 142 126 1180 1215 Entered New Map 1217 | . . 76 51 89 381 150 71 . 8 . . . 6 70 315 Time Decay 3844 | . 229 206 510 580 464 50 14 159 216 140 . 126 100 470 580 Lost Part 1120 | . 40 70 120 80 110 . 42 2 30 10 . 16 20 260 320 Lost Ally 470 | . . 10 . 60 . . 20 . . . . . . 380 . Squads Dispatched 54 | . 5 1 4 14 5 . . 2 . . . . 3 7 13 Investigation 25 | . 5 1 . 9 2 . . 1 . . . . 3 1 3 Extermination 7 | . . . . 3 1 . . 1 . . . . . . 2 Reinforcement 14 | . . . 4 1 2 . . . . . . . . 3 4 Assault 8 | . . . . 1 . . . . . . . . . 3 4 Garrison . | . . . . . . . . . . . . . . . . Intercept . | . . . . . . . . . . . . . . . . Searches Triggered . | . . . . . . . . . . . . . . . . Construction Impeded 7 | . . . 3 . 1 . . . . . . . . 2 1 Haulers Reinforced 1 | . . . . . . . . . . . . . . . 1 Active Scanning Responses 2 | . . . . . . . . . . . . . 1 1 . Cargo Convoy Interrupts . | . . . . . . . . . . . . . . . . Stealth | -11 -10 -9 -8 -7 -6 -5 -5 -5 -5 -5 -5 -4 -4 -4 -3 --------- Run | Yrd Mat Mat Mat Fac Fac Fac Was Fac Upp Upp Zhi Pro Fac Ext Res Distress Signals 17 | . . 3 4 . . . . . . . . . 1 6 3 Communications Jammed 7 | . . . . . . . . 7 . . . . . . . Distress Signals . | . . . . . . . . . . . . . . . . Times Spotted 321 | . 18 21 35 47 29 . 6 10 10 6 . 10 3 61 65 Peak Tracking Total 14 | . 3 8 11 5 5 . 6 3 5 4 . 4 4 14 9 Tactical Retreats 33 | . 1 . 5 4 . . . 1 5 . . 4 1 7 5 Traps | -11 -10 -9 -8 -7 -6 -5 -5 -5 -5 -5 -5 -4 -4 -4 -3 ------- Run | Yrd Mat Mat Mat Fac Fac Fac Was Fac Upp Upp Zhi Pro Fac Ext Res Traps Triggered 17 | . . . 2 6 . 1 . 1 . . . . 1 3 3 Indirectly 1 | . . . . 1 . . . . . . . . . . . Trap Hack Attempts . | . . . . . . . . . . . . . . . . Triggered . | . . . . . . . . . . . . . . . . Disarmed . | . . . . . . . . . . . . . . . . Reprogrammed . | . . . . . . . . . . . . . . . . Reused . | . . . . . . . . . . . . . . . . Traps Extracted . | . . . . . . . . . . . . . . . . Installed . | . . . . . . . . . . . . . . . . Triggered . | . . . . . . . . . . . . . . . . Objects Rigged 6 | . . . . . . . . . . . . . 6 . . Exploded 1 | . . . . . . . . . . . . . 1 . . Machines | -11 -10 -9 -8 -7 -6 -5 -5 -5 -5 -5 -5 -4 -4 -4 -3 ---------- Run | Yrd Mat Mat Mat Fac Fac Fac Was Fac Upp Upp Zhi Pro Fac Ext Res Machines Disabled 24 | . 1 3 2 12 . . . 1 . 1 . . 2 2 . Max in Single Turn 5 | . 1 2 1 5 . . . 1 . 1 . . 2 1 . Garrison Access 2 | . . . . . . . . 1 . . . . . . 1 Machines Repaired . | . . . . . . . . . . . . . . . . Machines Dismantled . | . . . . . . . . . . . . . . . . Machines Sabotaged . | . . . . . . . . . . . . . . . . Overloaded Fab Kills . | . . . . . . . . . . . . . . . . Hacking | -11 -10 -9 -8 -7 -6 -5 -5 -5 -5 -5 -5 -4 -4 -4 -3 --------- Run | Yrd Mat Mat Mat Fac Fac Fac Was Fac Upp Upp Zhi Pro Fac Ext Res Machines Accessed 57 | . 6 3 2 13 5 . . 3 . 2 4 . 5 8 6 Terminals 31 | . 5 3 . 7 . . . . . 1 . . 4 8 3 Fabricators 4 | . . . . 2 2 . . . . . . . . . . Repair Stations 6 | . 1 . . 2 1 . . 1 . . . . 1 . . Recycling Units 6 | . . . 1 2 1 . . 1 . . . . . . 1 Scanalyzers 3 | . . . 1 . 1 . . . . . . . . . 1 Garrison Access 2 | . . . . . . . . 1 . . . . . . 1 Total Hacks 147 | . 26 7 5 33 10 . . 11 . 2 17 . 12 11 13 Successful 75 | . 9 2 4 11 4 . . 3 . 2 17 . 7 8 8 Failed 72 | . 17 5 1 22 6 . . 8 . . . . 5 3 5 Catastrophic 12 | . 1 1 . 5 . . . 3 . . . . 1 . 1 Database Lockouts . | . . . . . . . . . . . . . . . . Manual 45 | . 11 7 . 15 4 . . 2 . . . . 3 . 3 Terminals 78 | . 22 7 . 16 . . . . . 1 . . 11 11 10 Fabricators 10 | . . . . 6 4 . . . . . . . . . . Repair Stations 13 | . 4 . . 5 1 . . 2 . . . . 1 . . Recycling Units 17 | . . . 3 6 1 . . 6 . . . . . . 1 Scanalyzers 7 | . . . 2 . 4 . . . . . . . . . 1 Garrison Access 4 | . . . . . . . . 3 . . . . . . 1 Terminal Hacks 48 | . 6 1 . 4 . . . . . 2 17 . 5 8 5 Record 8 | . . . . . . . . . . 2 5 . . . 1 Part Schematic 4 | . . . . . . . . . . . 4 . . . . Robot Schematic 1 | . 1 . . . . . . . . . . . . . . Robot Analysis 6 | . 1 1 . . . . . . . . 4 . . . . Prototype ID Bank 5 | . . . . . . . . . . . 4 . . . 1 Open Door 8 | . . . . . . . . . . . . . . 8 . Level Access Points 1 | . . . . 1 . . . . . . . . . . . Branch Access Points 1 | . 1 . . . . . . . . . . . . . . Emergency Access Points 2 | . . . . . . . . . . . . . 1 . 1 Terminal Index 2 | . 1 . . . . . . . . . . . 1 . . Alert Level 4 | . 1 . . 2 . . . . . . . . 1 . . Locate Traps 1 | . . . . 1 . . . . . . . . . . . Patrol Status 1 | . . . . . . . . . . . . . 1 . . Transport Status 1 | . . . . . . . . . . . . . . . 1 Hauler Manifests 1 | . . . . . . . . . . . . . . . 1 Zone Layout 2 | . 1 . . . . . . . . . . . 1 . . Fabricator Hacks 4 | . . . . 3 1 . . . . . . . . . . Network Status 2 | . . . . 1 1 . . . . . . . . . . Load Schematic 1 | . . . . 1 . . . . . . . . . . . Build 1 | . . . . 1 . . . . . . . . . . . Repair Station Hacks 4 | . 2 . . 1 . . . . . . . . 1 . . Scan Component 2 | . 1 . . 1 . . . . . . . . . . . Repair 1 | . 1 . . . . . . . . . . . . . . Refit 1 | . . . . . . . . . . . . . 1 . . Recycling Unit Hacks 6 | . . . 2 1 1 . . 2 . . . . . . . Process 1 | . . . . . . . . 1 . . . . . . . Report Inventory 3 | . . . 1 1 1 . . . . . . . . . . Retrieve Matter 1 | . . . . . . . . 1 . . . . . . . Retrieve Components 1 | . . . 1 . . . . . . . . . . . . Scanalyzer 4 | . . . 2 . 1 . . . . . . . . . 1 Insert Component 3 | . . . 1 . 1 . . . . . . . . . 1 Analyze 1 | . . . 1 . . . . . . . . . . . . Garrison Access Hacks 1 | . . . . . . . . 1 . . . . . . . Seal Access 1 | . . . . . . . . 1 . . . . . . . Unauthorized Hacks 8 | . 1 1 . 2 1 . . . . . . . 1 . 2 Terminals 4 | . 1 1 . . . . . . . . . . 1 . 1 Assimilate 1 | . . 1 . . . . . . . . . . . . . Botnet 2 | . 1 . . . . . . . . . . . . . 1 Detonate 1 | . . . . . . . . . . . . . 1 . . Fabricators 1 | . . . . 1 . . . . . . . . . . . Liberate 1 | . . . . 1 . . . . . . . . . . . Repair Stations 2 | . . . . 1 1 . . . . . . . . . . Patch 2 | . . . . 1 1 . . . . . . . . . . Recycling Units . | . . . . . . . . . . . . . . . . Scanalyzers . | . . . . . . . . . . . . . . . . Garrison Access 1 | . . . . . . . . . . . . . . . 1 Jam 1 | . . . . . . . . . . . . . . . 1 Data Cores Recovered . | . . . . . . . . . . . . . . . . Used . | . . . . . . . . . . . . . . . . Hacking Detections 41 | . 6 3 2 13 3 . . 2 . . . . 4 4 4 Full Trace Events 21 | . 6 2 . 8 1 . . 1 . . . . 2 . 1 Feedback Events . | . . . . . . . . . . . . . . . . Feedback Blocked . | . . . . . . . . . . . . . . . . Robot Schematics Acquired 1 | . 1 . . . . . . . . . . . . . . Robots Built 3 | . . . . 3 . . . . . . . . . . . Authchips . | . . . . . . . . . . . . . . . . Time 81 | . . . . 81 . . . . . . . . . . . Total Robot Build Rating 3 | . . . . 3 . . . . . . . . . . . Part Schematics Acquired 5 | . . . 1 . . . . . . . 4 . . . . Parts Built . | . . . . . . . . . . . . . . . . Authchips . | . . . . . . . . . . . . . . . . Time . | . . . . . . . . . . . . . . . . Total Part Build Rating . | . . . . . . . . . . . . . . . . Parts Repaired 1 | . 1 . . . . . . . . . . . . . . Time 13 | . 13 . . . . . . . . . . . . . . Parts Recycled . | . . . . . . . . . . . . . . . . Recycled Matter 2 | . . . . . . . . 2 . . . . . . . Retrieved Matter 2 | . . . . . . . . 2 . . . . . . . Retrieved Components 1 | . . . 1 . . . . . . . . . . . . Parts Scanalyzed 2 | . . . 1 . 1 . . . . . . . . . . Part Schematics Acquired 1 | . . . 1 . . . . . . . . . . . . Parts Damaged . | . . . . . . . . . . . . . . . . Bothacking | -11 -10 -9 -8 -7 -6 -5 -5 -5 -5 -5 -5 -4 -4 -4 -3 ------------ Run | Yrd Mat Mat Mat Fac Fac Fac Was Fac Upp Upp Zhi Pro Fac Ext Res Used RIF Installer . | . . . . . . . . . . . . . . . . Robots Hacked . | . . . . . . . . . . . . . . . . Non-combat . | . . . . . . . . . . . . . . . . Combat . | . . . . . . . . . . . . . . . . Robot Hacks Applied . | . . . . . . . . . . . . . . . . Relay Couplers Released . | . . . . . . . . . . . . . . . . Fabnet Peak Effective % . | . . . . . . . . . . . . . . . . Robots Rewired 10 | . . . . . . . . . . . . . . 10 . Allies Hacked . | . . . . . . . . . . . . . . . . Hacks Repelled . | . . . . . . . . . . . . . . . . Allies | -11 -10 -9 -8 -7 -6 -5 -5 -5 -5 -5 -5 -4 -4 -4 -3 -------- Run | Yrd Mat Mat Mat Fac Fac Fac Was Fac Upp Upp Zhi Pro Fac Ext Res Total Allies 26 | . . 1 . 3 . . 1 . . . . . . 21 . Largest Group 7 | . . 1 . 3 . . 1 . . . . . . 7 1 Highest-Rated Group 283 | . . 10 . 24 . . 31 . . . . . . 283 159 Highest-Rated Ally 159 | . . 10 . 8 . . 31 . . . . . . 159 159 Total Orders . | . . . . . . . . . . . . . . . . Ally Attacks 190 | . . . . 31 . . 4 . . . . . . 155 . Total Damage 3998 | . . . . 272 . . 44 . . . . . . 3682 . Kills 24 | . . . . 1 . . . . . . . . . 23 . Allies Corrupted 1 | . . . . . . . . . . . . . . 1 . Allies Melted 1 | . . . . . . . . . . . . . . 1 . Intel | -11 -10 -9 -8 -7 -6 -5 -5 -5 -5 -5 -5 -4 -4 -4 -3 ------- Run | Yrd Mat Mat Mat Fac Fac Fac Was Fac Upp Upp Zhi Pro Fac Ext Res Active Infowar (turns) 4204 | . . 165 . 7 187 107 38 544 681 728 268 544 416 434 85 Optics 152 | . . . . . . . . . . . . . . 152 . Sensors 490 | . . 165 . . 184 106 35 . . . . . . . . A.S.S. 3058 | . . . . . . . . 139 681 728 268 544 416 282 . Terrain 232 | . . . . . 3 107 38 . . . . . . . 84 Seismic 97 | . . 97 . . . . . . . . . . . . . T.N.C. 1 | . . . . . . . . . . . . . . . 1 Machine Analysis 6 | . . . . 6 . . . . . . . . . . . Jamming 491 | . . . . . . . . 411 . 80 . . . . . ECM 1 | . . . . 1 . . . . . . . . . . . Robot Analysis Total 6 | . 1 1 . . . . . . . . 4 . . . . Derelict Logs Recovered 3 | . . . . . . . . . . 1 . 2 . . . Drone Launches . | . . . . . . . . . . . . . . . . Drone Recoveries . | . . . . . . . . . . . . . . . . Exploration | -11 -10 -9 -8 -7 -6 -5 -5 -5 -5 -5 -5 -4 -4 -4 -3 ------------- Run | Yrd Mat Mat Mat Fac Fac Fac Was Fac Upp Upp Zhi Pro Fac Ext Res Turns Passed 12106 | . 587 428 1394 1786 1176 107 120 781 681 728 268 611 461 1192 1786 Spaces Moved 6611 | 1 224 208 492 1070 443 59 131 451 423 473 182 414 579 662 799 Core 310 | . . . . 2 . . 119 20 . . . 105 54 . 10 Treads 992 | . 88 98 4 3 173 . . . . . . . . 52 574 Legs 2600 | 1 136 . 9 104 219 . . 431 423 473 182 309 . 313 . Wheels 1758 | . . 110 479 961 51 59 12 . . . . . . 86 . Hover 206 | . . . . . . . . . . . . . . 1 205 Flight 745 | . . . . . . . . . . . . . 525 210 10 Fastest Speed 39 | 120 120 90 90 95 110 140 50 50 140 140 140 100 45 39 45 Average Speed 125 | 120 162 126 99 129 201 152 60 136 140 140 140 129 50 100 136 Slowest Speed 650 | 120 190 160 225 650 320 170 170 140 140 140 140 140 100 240 350 Overloaded Moves . | . . . . . . . . . . . . . . . . Propulsion Burnouts . | . . . . . . . . . . . . . . . . Robots Hopped 3 | . . . . . . . . . . . . . 1 2 . Potential Cave-ins . | . . . . . . . . . . . . . . . . Cave-ins Triggered . | . . . . . . . . . . . . . . . . Teleports 1 | . . . . . . . . . . . . . . . 1 Exploration Rate (%) 34 | 2 40 18 33 35 16 2 73 11 57 62 62 67 9 47 21 Regions Visited 15 Branch Regions 5 Pre-discovered Areas 4 | . . . . . . . . . . . 3 1 . . . Known Exits Taken 9 | . . 1 . 1 . . . 1 1 1 1 1 1 1 . Unknown Exits Taken 4 | 1 1 . 1 . 1 . . . . . . . . . . Scrap Searched 5 | . . . . . . . . . 2 2 . 1 . . . Spaces Dug 7 | . 1 . . . . . . . . . . . . . 6 Terrain Destroyed 266 | . 1 21 . 63 6 6 33 10 3 5 . 10 34 32 42 Melee 4 | . 1 . . . . . . . . . . . . . 3 Projectile 100 | . . . . 1 . . . 10 3 5 . 10 . 32 39 AOE 162 | . . 21 . 62 6 6 33 . . . . . 34 . . Terrain Rammed . | . . . . . . . . . . . . . . . . Walls Destroyed . | . . . . . . . . . . . . . . . . Machines Disabled . | . . . . . . . . . . . . . . . . Actions | -11 -10 -9 -8 -7 -6 -5 -5 -5 -5 -5 -5 -4 -4 -4 -3 --------- Run | Yrd Mat Mat Mat Fac Fac Fac Was Fac Upp Upp Zhi Pro Fac Ext Res Total 9083 | . 319 296 1216 1286 588 69 165 550 474 517 195 464 747 975 1222 Wait 1015 | . 10 15 543 26 36 . 7 2 7 7 . 28 151 53 130 Move 6592 | . 223 207 491 1069 442 59 130 450 422 472 181 413 576 658 799 Hop 2 | . . . . . . . . . . . . . 1 1 . Pick Up 110 | . 3 9 20 14 3 . 3 14 4 3 2 . 3 9 23 Fast Attach 164 | . 2 9 21 10 11 . 5 17 4 4 3 1 8 45 24 Attach 82 | . 3 6 8 6 5 4 2 7 3 2 . 1 . 13 22 Detach 57 | . . . 5 2 3 . 7 3 . 2 1 2 . 13 19 Swap 135 | . 3 4 12 39 11 3 . 5 1 7 4 . . 22 24 Drop 142 | . 2 2 27 21 8 . 6 13 3 6 4 2 7 16 25 Fire 552 | . 7 32 73 75 68 3 5 36 28 14 . 16 . 84 111 Melee 146 | . 65 9 14 . . . . . . . . . . 31 27 Ram 3 | . . . 1 . . . . . . . . . 1 1 . Kick 4 | . 1 . . . . . . . 2 . . 1 . . . Crush 23 | . . 3 1 . 1 . . . . . . . . . 18 Escape Stasis 24 | . . . . 24 . . . . . . . . . . . Rewire 32 | . . . . . . . . 3 . . . . . 29 . Trap . | . . . . . . . . . . . . . . . . Miscellaneous . | . . . . . . . . . . . . . . . . Route ------- -11/Scrapyard -10/Materials (discovered 3 exits: *Mat x2 / Min) -9/Materials -8/Materials -7/Factory (discovered 4 exits: *Fac x4) -6/Factory -5/Factory -5/Waste -5/Factory -5/Upper Caves -5/Upper Caves -5/Zhirov -4/Proximity Caves -4/Factory (discovered 4 exits: Res / Upp / *Ext / Arm) -4/Extension -3/Research (discovered 1 exit: [*Qua]) History --------- Turn | Location | Event 1 | -11/Scrapyard | Discovered new exit (range 0) 1 | -11/Scrapyard | Entered Materials 35 | -10/Materials | Identified exit to Mines 224 | -10/Materials | Discovered new exit (range 13) 315 | -10/Materials | Build established: Mutant 340 | -10/Materials | Repaired Lgt. Armor Plating 433 | -10/Materials | Lost 3 parts (1p1n1w) 567 | -10/Materials | Discovered new exit (range 5) 588 | -10/Materials | Entered another Materials area 588 | -9/Materials | Evolved 2 slots: Utility x2 806 | -9/Materials | Core integrity fell below 50% 834 | -9/Materials | Core integrity fell below 20% 841 | -9/Materials | Lost 5 parts (1p2n2u) 953 | -9/Materials | Discovered new exit (range 16) 1015 | -9/Materials | Identified exit to Materials 1016 | -9/Materials | Entered another Materials area 1016 | -8/Materials | Evolved 2 slots: Propulsion x1, Weapon x1 1208 | -8/Materials | Lost 6 parts (3n3w) 1494 | -8/Materials | Build established: Scavenger-Gunner 1894 | -8/Materials | Build established: Scavenger-Tank 2373 | -8/Materials | Discovered new exit (range 15) 2410 | -8/Materials | Entered Factory 2410 | -7/Factory | Evolved 2 slots: Utility x2 3059 | -7/Factory | Lost 3 parts (3n) 3610 | -7/Factory | First assault squad dispatched 3791 | -7/Factory | Fabricated G-34 Mercenary? 3805 | -7/Factory | Identified exit to Factory 3901 | -7/Factory | Lost 3 allies 3902 | -7/Factory | System corruption reached 10% 4196 | -7/Factory | Entered another Factory area 4196 | -6/Factory | Evolved 2 slots: Utility x2 5324 | -6/Factory | Discovered new exit (range 16) 5356 | -6/Factory | Lost 6 parts (1n2u3w) 5372 | -6/Factory | Entered another Factory area 5372 | -5/Factory | Evolved 2 slots: Power x1, Propulsion x1 5479 | -5/Factory | Sucked down chute 5479 | -5/Factory | Entered Waste 5480 | -5/Waste | Met a frightened Derelict 5494 | -5/Waste | EMP discharged 5494 | -5/Waste | Spotted C-40 Crusher 5514 | -5/Waste | Crushed by Compactor (1 part destroyed, 1 dropped) 5517 | -5/Waste | Crushed by Compactor (1 part destroyed, 1 dropped) 5520 | -5/Waste | Crushed by Compactor (1 part destroyed, 1 dropped) 5544 | -5/Waste | Spotted C-40 Crusher 5548 | -5/Waste | Spotted C-40 Crusher 5551 | -5/Waste | Lost 7 parts (2n3u2w) 5554 | -5/Waste | Spotted C-40 Crusher 5555 | -5/Waste | Spotted C-40 Crusher 5555 | -5/Waste | Spotted C-40 Crusher 5560 | -5/Waste | Crushed by Compactor (1 part destroyed, 2 dropped) 5594 | -5/Waste | EMP discharged 5594 | -5/Waste | System corruption reached 10% 5594 | -5/Waste | Discovered new exit (range 10) 5599 | -5/Waste | Entered Factory 6040 | -5/Factory | Discovered new exit (range 10) 6051 | -5/Factory | Identified exit to Upper Caves 6226 | -5/Factory | Lost 4 parts (4u) 6241 | -5/Factory | Found Corrupted Prototype Device 6241 | -5/Factory | Identified Active Sensor Suite 6380 | -5/Factory | Entered Upper Caves 6532 | -5/Upper Caves | Build established: Scavenger-Skirmisher 6560 | -5/Upper Caves | Spotted B-75 Beast 6610 | -5/Upper Caves | Core integrity fell below 50% 6640 | -5/Upper Caves | Destroyed B-75 Beast 6662 | -5/Upper Caves | Lost 3 parts (1u2w) 7053 | -5/Upper Caves | Discovered new exit (range 7) 7060 | -5/Upper Caves | Identified exit to Upper Caves 7061 | -5/Upper Caves | Entered another Upper Caves area 7067 | -5/Upper Caves | Encountered a Warlord checkpoint 7671 | -5/Upper Caves | Found Alien Artifact 7671 | -5/Upper Caves | Identified Dimensional Node Initializer 7671 | -5/Upper Caves | Initialized slip node 7755 | -5/Upper Caves | Learned 8 Factory zone layouts 7778 | -5/Upper Caves | Discovered new exit (range 8) 7787 | -5/Upper Caves | Identified exit to Zhirov 7789 | -5/Upper Caves | Entered Zhirov 7790 | -5/Zhirov | Discovered new exit (range 3) 7815 | -5/Zhirov | Met Zhirov 7847 | -5/Zhirov | Learned location of Quarantine (-3) 7847 | -5/Zhirov | Learned location of Testing (-2) 7847 | -5/Zhirov | Learned location of Command (-1) 7856 | -5/Zhirov | Zhirov requested help retrieving the SGEMP Prototype 7932 | -5/Zhirov | Found Alien Artifact 7932 | -5/Zhirov | Identified Integrated Dissipator 7932 | -5/Zhirov | Installed Integrated Dissipator, increased core heat dissipation (+20) 7951 | -5/Zhirov | Found Alien Artifact 8055 | -5/Zhirov | Identified exit to Proximity Caves 8057 | -5/Zhirov | Entered Proximity Caves 8571 | -4/Proximity Caves | Core integrity fell below 20% 8662 | -4/Proximity Caves | Discovered new exit (range 7) 8667 | -4/Proximity Caves | Identified exit to Factory 8668 | -4/Proximity Caves | Entered Factory 8668 | -4/Factory | Evolved 2 slots: Propulsion x1, Utility x1 8669 | -4/Factory | Identified exit to Armory 8670 | -4/Factory | Identified exit to Research 8670 | -4/Factory | Identified exit to Upper Caves 9024 | -4/Factory | Build established: Scout 9027 | -4/Factory | Discovered new exit (range 14) 9128 | -4/Factory | Identified exit to Extension 9129 | -4/Factory | Entered Extension 9169 | -4/Extension | Lost 3 parts (2p1n) 9219 | -4/Extension | Rescued a captive Derelict 9220 | -4/Extension | Rescued a captive Derelict 9255 | -4/Extension | Rescued a captive Derelict 9327 | -4/Extension | Lost 4 parts (1p3n) 9384 | -4/Extension | Rescued a captive Derelict 9386 | -4/Extension | Rescued a captive Derelict 9402 | -4/Extension | Rescued a captive Derelict 9503 | -4/Extension | Lost 6 allies 9514 | -4/Extension | Lost 4 parts (1p2u1w) 9629 | -4/Extension | First assault squad dispatched 9674 | -4/Extension | Lost 3 allies 9726 | -4/Extension | Rescued a captive Derelict 9727 | -4/Extension | Rescued a captive Derelict 9820 | -4/Extension | Build established: Scavenger-Gunner 9839 | -4/Extension | Lost 4 allies 9929 | -4/Extension | Disrupted transfer network 9940 | -4/Extension | Rescued a captive Derelict 9942 | -4/Extension | Rescued a captive Derelict 9948 | -4/Extension | Spotted B-86 Titan 10039 | -4/Extension | Core integrity fell below 50% 10114 | -4/Extension | Lost 11 parts (2p5n2u2w) 10132 | -4/Extension | Spotted B-86 Titan 10142 | -4/Extension | Build established: Scavenger-Mutant 10155 | -4/Extension | Core integrity fell below 20% 10186 | -4/Extension | Rescued A7 10194 | -4/Extension | Lost 4 parts (1p3n) 10213 | -4/Extension | Allies destroyed B-86 Titan 10230 | -4/Extension | Destroyed B-86 Titan 10241 | -4/Extension | System corruption reached 10% 10252 | -4/Extension | Found Hvy. Reflective Plating 10265 | -4/Extension | System corruption reached 30% 10319 | -4/Extension | Discovered exit to Research (range 3) 10321 | -4/Extension | Entered Research 10321 | -3/Research | Accompanied by 1 ally (A7) 10321 | -3/Research | Evolved 2 slots: Utility x2 10332 | -3/Research | Identified Transdimensional Reconstructor 10607 | -3/Research | Build established: Scavenger-Tank 10959 | -3/Research | System corruption reached 10% 11004 | -3/Research | Lost 4 parts (1n1u2w) 11532 | -3/Research | Lost 3 parts (1n2w) 11571 | -3/Research | First assault squad dispatched 11725 | -3/Research | Lost 5 parts (1p3u1w) 11814 | -3/Research | System corruption reached 30% 11835 | -3/Research | Core integrity fell below 50% 11862 | -3/Research | Lost 9 parts (1p2n4u2w) 11949 | -3/Research | Warped through subspace 12097 | -3/Research | Core integrity fell below 20% 12103 | -3/Research | Discovered new exit (range 14) 12107 | -3/Research | Destroyed by G-73 Enforcer with Heavy Laser Last Messages --------------- 12089_ Dropped Com. Particle Reactor. 12090_ Dropped Lrg. Storage Unit. 12090_ Imp. Antigrav System destroyed. 12090_ Acquired Com. Particle Reactor. 12091_ Dropped Mic. Antimatter Reactor. 12092_ K-01 Serf collects debris. 12092_ Dropped Imp. Arc Projector. 12092_ Dropped Hvy. Beamcaster. 12093_ Dropped Adv. Transmission Jammer. 12093_ Linear Gravjet destroyed. 12093_ Dropped Graphene Brace. 12094_ Dropped Exp. Energy Well. 12094_ Dropped Com. HERF Cannon. 12095_ K-01 Serf collects debris. 12095_ Dropped Gravity Flail. 12100_ System corrupted: Component data lost. 12100_ Acquired Field Propulsion Drive. 12103_ Field Propulsion Drive destroyed. 12103_ EXIT=FOUND 12107_ Field Propulsion Drive destroyed. Map ----- +----------------------------------------------------+ | | | | | | | | | | | | | | | | | | | | | ?????????????????????????????????????????????????? | | ?????????????????????????????????????????????????? | | ?????????????????????????????????????????????????? | | ?????????????????????????????????????????????????? | | ?????????????????????????????????????????????????? | | ?????????????????????????????????????????????????? | | ?????????????????????????????????????????????????? | | ?????????????????????????????????????????????????? | | ???????##+####+###########???????????????????????? | | ???????+ !! #???????????????????????? | | ???????#^ !! #??#######??????????????? | | ???????# #? #??????????????? | | ???????# #? #??????????????? | | ???????# # #??????????????? | | ???????# # #??????????????? | | ???????# @ !< #??????????????? | | ???????####] | # #??????????????? | | ??????????#[! | # #??????????????? | | ??????????#*[gg #? #??????????????? | | ??????????#!! gg #? #??????????????? | | ??????????#! % #??#######??????????????? | | ??????????# k###+#######???????????????????????? | | ??????????## #?????????????????????????????????? | | ############ #?????????????????????????????????? | | # #?????????????????????????????????? | | ? # #?????????????????????????????????? | | ???""""" # #?????????????????????????????????? | | ???""""" + #???##########????????????????????? | | ???""""" # #?? #????????????????????? | | ? # #?? #????????????????????? | | # #? #????????????????????? | | ############ #? ]#????????????????????? | | ######????# # #????????????????????? | | #????+ # #????????????????????? | | #????# + #????????????????????? | | #????# # #????????????????????? | | ! ""#????# # #????????????????????? | | ! ""#????# #? #????????????????????? | | ""#????# #? #????????????????????? | | T#????# #?? #????????????????????? | +----------------------------------------------------+ Best States ------------- Heat Dissipation 148 Coolant Potential 100 Energy Generation 39 Energy Capacity 880 Matter Stores 300 Matter Capacity 300 Sight Range 20 Robot Scan Range 20 Terrain Scan Range 20 Terrain Scan Density 85 Jamming Range 14 Power Amplification 20 Armor Coverage 2400 Resistance: TH 25 Utility Shielding 66 Weapon Shielding 33 Phase Shifting 10 Evasion (%) 62 Targeting Accuracy 15 Melee Accuracy 8 Launcher Accuracy 40 Target Analysis 12 Core Analysis 6 Armor Integrity Analysis 30 Recoil Reduction 5 Particle Charging 30 Offensive Hacking 24 Item Schematics ----------------- Lgt. EM Pulse Cannon | -8/Materials | Scanalyzed Assault Drone Bay | -5/Zhirov | Free Exp. Heat Sink | -5/Zhirov | Free Imp. Arc Thrower | -5/Zhirov | Free Exp. Optical Array | -5/Zhirov | Free Robot Schematics ------------------ G-34 Mercenary | -10/Materials | Hacked Fabricated ------------ G-34 Mercenary | x3 | -7/Factory Repaired ---------- Lgt. Armor Plating | 25% | -10/Materials Alien Tech Used ----------------- Dimensional Node Initializer Integrated Dissipator Transdimensional Reconstructor Achievements -------------- None Challenges ------------ None Game ------ Seed FrostSapperAutogun Manual? 0 Play Time 01:40:20 Cumulative 1028.0 hours Start 2025.05.09 @ 19:20:44 End 2025.05.09 @ 21:18:37 Sessions 1 Manual Loads 0 Difficulty Rogue Special Mode None Game No. 1262 Rogue 980 Adventurer 124 Explorer 158 Win Type - Total 44 Types 31/0/8/3/1/0/0/1/0/0 Lore% 91 Gallery% 85 Achievement% 79 Wizard Run 0 Options --------- Layout 0 ASCII 0 Keyboard 1 Movement Numpad Keybinds 0 Fullscreen 2 Font 18/X11 Map View 76x50 Zoom Use 0% Tactical HUD 1 Map Filters NONE Filters NONE Steam 1 RUN: 0b88f082-6e00-4074-b059-81c49f976dbc